fUSD/lending_fUSD_20250904
["ID","MTS","AMOUNT","RATE_DAILY","PERIOD"]
[383521460,1756968700054,-400.0,0.00023287,2]
[383521461,1756968700064,-541.86,0.00023287,2]
[383521462,1756968700074,-400.0,0.00023287,2]
[383521463,1756968700084,-400.0,0.00023287,2]
[383521464,1756968700093,-813.23,0.00023287,2]
[383521465,1756968700103,-400.0,0.00023287,2]
[383521466,1756968700113,-803.95,0.00023287,2]
[383521467,1756968700123,-400.0,0.00023287,2]
[383521468,1756968700132,-400.0,0.00023287,2]
[383521469,1756968700142,-400.0,0.00023287,2]
[383521470,1756968700151,-415.07,0.00023287,2]
[383521471,1756968700160,-400.0,0.00023287,2]
[383521472,1756968700169,-400.0,0.00023287,2]
[383521473,1756968700179,-400.0,0.00023287,2]
[383521474,1756968700188,-400.0,0.00023287,2]
[383521475,1756968700198,-1138.25,0.00023287,2]
[383521476,1756968700208,-400.0,0.00023287,2]
[383521477,1756968700219,-400.0,0.00023287,2]
[383521478,1756968700228,-400.0,0.00023287,2]
[383521479,1756968700240,-400.0,0.00023287,2]
[383521480,1756968700250,-400.0,0.00023287,2]
[383521481,1756968700260,-400.0,0.00023287,2]
[383521482,1756968700269,-400.0,0.00023287,2]
[383521483,1756968700278,-3006.73,0.00023287,2]
[383521484,1756968700288,-1933.34,0.00023287,2]
[383521485,1756968700297,-400.0,0.00023287,2]
[383521486,1756968700307,-400.0,0.00023287,2]
[383521487,1756968700317,-400.0,0.00023287,2]
[383521488,1756968700326,-673.23,0.00023287,2]
[383521489,1756968700336,-400.0,0.00023287,2]
[383521490,1756968700344,-400.0,0.00023287,2]
[383521491,1756968700354,-400.0,0.00023287,2]
[383521492,1756968700363,-400.0,0.00023287,2]
[383521493,1756968700373,-400.0,0.00023287,2]
[383521494,1756968700383,-400.0,0.00023287,2]
[383521495,1756968700392,-400.0,0.00023287,2]
[383521496,1756968700402,-541.66,0.00023287,2]
[383521497,1756968700411,-400.0,0.00023287,2]
[383521498,1756968700421,-400.0,0.00023287,2]
[383521499,1756968700430,-400.0,0.00023287,2]
[383521500,1756968700440,-400.0,0.00023287,2]
[383521501,1756968700450,-400.0,0.00023287,2]
[383521502,1756968700460,-400.0,0.00023287,2]
[383521503,1756968700469,-400.0,0.00023287,2]
[383521504,1756968700478,-570.64,0.00023287,2]
[383521505,1756968700488,-400.0,0.00023287,2]
[383521506,1756968700500,-400.0,0.00023287,2]
[383521507,1756968700510,-400.0,0.00023287,2]
[383521508,1756968700520,-400.0,0.00023287,2]
[383521509,1756968700530,-400.0,0.00023287,2]
[383521510,1756968700539,-439.57,0.00023287,2]
[383521511,1756968700549,-400.0,0.00023287,2]
[383521512,1756968700561,-882.15,0.00023287,2]
[383521513,1756968700571,-404.66908343,0.00023287,2]
[383521514,1756968700582,-412.39088048,0.00023287,2]
[383521515,1756968700593,-1062.09,0.00023287,2]
[383521516,1756968700602,-400.0,0.00023287,2]
[383521517,1756968700611,-411.96450461,0.00023287,2]
[383521518,1756968700621,-480.41,0.00023287,2]
[383521519,1756968700630,-400.0,0.00023287,2]
[383521520,1756968700640,-400.0,0.00023287,2]
[383521521,1756968700649,-400.0,0.00023287,2]
[383521522,1756968700659,-2464.66,0.00023287,2]
[383521523,1756968700669,-400.0,0.00023287,2]
[383521524,1756968700678,-400.0,0.00023287,2]
[383521525,1756968700688,-400.0,0.00023287,2]
[383521526,1756968700697,-400.0,0.00023287,2]
[383521527,1756968700706,-410.29449863,0.00023287,2]
[383521528,1756968700716,-400.0,0.00023287,2]
[383521529,1756968700725,-419.36,0.00023287,2]
[383521530,1756968700735,-400.0,0.00023287,2]
[383521531,1756968700744,-400.0,0.00023287,2]
[383521532,1756968700754,-446.87743335,0.00023287,2]
[383521533,1756968700764,-400.0,0.00023287,2]
[383521534,1756968700773,-400.0,0.00023287,2]
[383521535,1756968700783,-400.0,0.00023287,2]
[383521536,1756968700792,-400.0,0.00023287,2]
[383521537,1756968700803,-966.02,0.00023287,2]
[383521538,1756968700812,-400.0,0.00023287,2]
[383521539,1756968700822,-400.0,0.00023287,2]
[383521540,1756968700831,-400.0,0.00023287,2]
[383521541,1756968700840,-400.0,0.00023287,2]
[383521542,1756968700850,-400.0,0.00023287,2]
[383521543,1756968700859,-400.0,0.00023287,2]
[383521544,1756968700869,-400.0,0.00023287,2]
[383521545,1756968700878,-528.88,0.00023287,2]
[383521546,1756968700887,-719.73,0.00023287,2]
[383521547,1756968700896,-400.0,0.00023287,2]
[383521548,1756968700906,-400.0,0.00023287,2]
[383521549,1756968700916,-514.39,0.00023287,2]
[383521550,1756968700925,-400.0,0.00023287,2]
[383521551,1756968700935,-1437.07,0.00023287,2]
[383521552,1756968700945,-407.91,0.00023287,2]
[383521553,1756968700955,-400.0,0.00023287,2]
[383521554,1756968700965,-542.09,0.00023287,2]
[383521555,1756968700976,-1108.31,0.00023287,2]
[383521556,1756968700986,-400.0,0.00023287,2]
[383521557,1756968700996,-450.96697956,0.00023287,2]
[383521558,1756968701007,-400.0,0.00023287,2]
[383521559,1756968701017,-400.0,0.00023287,2]
[383521560,1756968701030,-1868.73,0.00023287,2]
[383521561,1756968701041,-400.0,0.00023287,2]
[383521562,1756968701051,-400.0,0.00023287,2]
[383521563,1756968701061,-400.0,0.00023287,2]
[383521564,1756968701069,-470.44,0.00023287,2]
[383521565,1756968701078,-400.0,0.00023287,2]
[383521566,1756968701087,-400.0,0.00023287,2]
[383521567,1756968701096,-400.0,0.00023287,2]
[383521568,1756968701105,-400.0,0.00023287,2]
[383521569,1756968701115,-400.0,0.00023287,2]
[383521570,1756968701124,-400.0,0.00023287,2]
[383521571,1756968701133,-755.98,0.00023287,2]
[383521572,1756968701143,-3924.3,0.00023287,2]
[383521573,1756968701152,-2934.82,0.00023287,2]
[383521574,1756968701161,-185.65840566,0.00023287,2]
[383521575,1756968701170,-552.58,0.00023287,2]
[383521576,1756968701180,-400.0,0.00023287,2]
[383521577,1756968701189,-667.01,0.00023287,2]
[383521578,1756968701198,-400.0,0.00023287,2]
[383521579,1756968701208,-400.0,0.00023287,2]
[383521580,1756968701374,-400.0,0.00023287,2]
[383521581,1756968701383,-924.98,0.00023287,2]
[383521582,1756968701393,-1253.03,0.00023287,2]
[383521583,1756968701405,-400.0,0.00023287,2]
[383521584,1756968701415,-400.0,0.00023287,2]
[383521585,1756968701424,-400.0,0.00023287,2]
[383521586,1756968701435,-400.0,0.00023287,2]
[383521587,1756968701446,-1131.14,0.00023287,2]
[383521588,1756968701456,-400.0,0.00023287,2]
[383521589,1756968701466,-400.0,0.00023287,2]
[383521590,1756968701476,-400.0,0.00023287,2]
[383521591,1756968701488,-400.0,0.00023287,2]
[383521592,1756968701499,-416.22089577,0.00023287,2]
[383521593,1756968701509,-400.0,0.00023287,2]
[383521594,1756968701519,-400.0,0.00023287,2]
[383521595,1756968701530,-400.0,0.00023287,2]
[383521596,1756968701541,-400.0,0.00023287,2]
[383521597,1756968701551,-898.03,0.00023287,2]
[383521598,1756968701560,-400.0,0.00023287,2]
[383521599,1756968701570,-574.11,0.00023287,2]
[383521600,1756968701580,-444.04,0.00023287,2]
[383521601,1756968701590,-400.0,0.00023287,2]
[383521602,1756968701600,-400.0,0.00023287,2]
[383521603,1756968701610,-400.0,0.00023287,2]
[383521604,1756968701619,-684.04,0.00023287,2]
[383521605,1756968701630,-400.0,0.00023287,2]
[383521606,1756968701639,-400.0,0.00023287,2]
[383521607,1756968701649,-400.0,0.00023287,2]
[383521608,1756968701658,-400.0,0.00023287,2]
[383521609,1756968701668,-2096.89,0.00023287,2]
[383521610,1756968701677,-400.0,0.00023287,2]
[383521611,1756968701686,-200.0,0.0002331,7]
[383521612,1756968701696,-2036.04011792,0.00023316,2]
[383521613,1756968701705,-250.0,0.00023321,2]
[383521614,1756968701714,-631.0,0.00023324,2]
[383521615,1756968701724,-500.0,0.00023324,2]
[383521616,1756968701733,-1010.0,0.00023324,2]
[383521617,1756968701743,-1091.0,0.00023361,2]
[383521618,1756968701752,-429.0,0.00023361,2]
[383521619,1756968701762,-17389.32819649,0.000234,2]
[383521620,1756968701787,-5268.43307372,0.000234,2]
[383521621,1756968701799,-11802.06070833,0.000234,2]
[383521622,1756968701810,-1190.82612164,0.000234,2]
[383521623,1756968701821,-515.82127229,0.000234,2]
[383521624,1756968701837,-3557.77625699,0.000234,2]
[383521625,1756968701849,-500.0,0.000234,2]
[383521626,1756968701859,-3615.360075,0.000234,2]
[383521627,1756968701933,-266.6244499,0.000234,2]
[383521628,1756968701944,-399.07387676,0.000234,2]
[383521629,1756968701956,-547.03466666,0.000234,2]
[383521630,1756968702145,-3156.18049084,0.000234,2]
[383521632,1756968702470,-400.0,0.00021917,2]
[383521633,1756968702479,-400.0,0.00021917,2]
[383521634,1756968702488,-500.0,0.00021917,2]
[383521635,1756968702497,-192.3842267,0.00021917,2]
[383521636,1756968703022,-200.13,0.00020778,2]
[383521637,1756968703032,-307.6157733,0.00021917,2]
[383521638,1756968703042,-500.0,0.00021917,2]
[383521639,1756968703052,-83.80422669,0.00021917,2]
[383521640,1756968703063,-319.86737522,0.00021917,2]
[383521641,1756968703073,-400.0,0.00021917,2]
[383521642,1756968703083,-400.0,0.00021917,2]
[383521643,1756968703093,-400.0,0.00021917,2]
[383521644,1756968703103,-379.93851778,0.00021917,2]
[383521645,1756968703123,-20.06148222,0.00021917,2]
[383521646,1756968703133,-400.0,0.00021917,2]
[383521647,1756968703142,-400.0,0.00021917,2]
[383521648,1756968703152,-400.0,0.00022191,2]
[383521649,1756968703162,-400.0,0.00022191,2]
[383521650,1756968703171,-400.0,0.00022465,2]
[383521651,1756968703180,-400.0,0.00022465,2]
[383521652,1756968703190,-400.0,0.00022739,2]
[383521653,1756968703199,-1608.9487715,0.00022913,2]
[383521654,1756968703208,-514.64478986,0.00023,7]
[383521655,1756968703218,-400.0,0.00023013,2]
[383521656,1756968703228,-400.0,0.00023287,2]
[383521657,1756968703237,-26483.20410418,0.000234,2]
[383521658,1756968703246,-279.207985,0.000234,7]
[383521659,1756968703257,-279.207985,0.000234,7]
[383521660,1756968703266,-279.207985,0.000234,7]
[383521661,1756968703276,-279.207985,0.000234,7]
[383521662,1756968703285,-275.31421,0.000234,7]
[383521663,1756968703294,-275.31421,0.000234,7]
[383521664,1756968703305,-275.31421,0.000234,7]
[383521665,1756968703314,-275.314207,0.000234,7]
[383521666,1756968703324,-212.59699798,0.000234,7]
[383521667,1756968703334,-287.61899177,0.0002341,2]
[383521668,1756968703343,-781.4056575,0.00023435,2]
[383521669,1756968703354,-631.0,0.00023461,2]
[383521670,1756968703364,-430.53264573,0.00023461,2]
[383521671,1756968703375,-1010.0,0.00023461,2]
[383521672,1756968703384,-160.21715652,0.00023466,2]
[383521673,1756968703527,-1091.0,0.00023498,2]
[383521674,1756968703558,-429.0,0.00023498,2]
[383521675,1756968703569,-200.0,0.000235,2]
[383521676,1756968703579,-200.0,0.0002351,7]
[383521677,1756968703589,-500.0,0.0002356,2]
[383521678,1756968703600,-400.0,0.00023561,2]
[383521679,1756968703610,-432.67822006,0.00023561,2]
[383521680,1756968703622,-400.0,0.00023561,2]
[383521681,1756968703631,-358.71426492,0.00023561,2]
[383521682,1756968703641,-400.0,0.00023561,2]
[383521683,1756968703650,-157.06793939,0.00023561,2]
[383521684,1756968703660,-408.88272937,0.00023561,2]
[383521685,1756968703669,-400.0,0.00023561,2]
[383521686,1756968703678,-445.77820812,0.00023561,2]
[383521687,1756968703687,-225.35522207,0.00023561,2]
[383521688,1756968703697,-400.0,0.00023561,2]
[383521689,1756968703706,-444.56418446,0.00023561,2]
[383521690,1756968703715,-358.67621035,0.00023561,2]
[383521691,1756968703728,-41.32378965,0.00023561,2]
[383521692,1756968703737,-258.91030307,0.00023561,2]
[383521693,1756968703749,-141.08969693,0.00023561,2]
[383521694,1756968703758,-400.0,0.00023561,2]
[383521695,1756968703767,-400.0,0.00023561,2]
[383521696,1756968703778,-400.0,0.00023561,2]
[383521697,1756968703787,-400.0,0.00023561,2]
[383521698,1756968703797,-400.0,0.00023561,2]
[383521699,1756968703806,-400.0,0.00023561,2]
[383521700,1756968703815,-400.0,0.00023561,2]
[383521701,1756968703825,-400.0,0.00023561,2]
[383521702,1756968703834,-400.0,0.00023561,2]
[383521703,1756968703844,-400.0,0.00023561,2]
[383521704,1756968703854,-400.0,0.00023561,2]
[383521705,1756968703863,-400.0,0.00023561,2]
[383521706,1756968703872,-405.75252802,0.00023561,2]
[383521707,1756968703882,-400.0,0.00023561,2]
[383521708,1756968703892,-234.10693539,0.00023561,2]
[383521709,1756968703901,-501.16,0.00023561,2]
[383521710,1756968703910,-402.46,0.00023561,2]
[383521711,1756968703920,-400.0,0.00023561,2]
[383521712,1756968703929,-400.0,0.00023561,2]
[383521713,1756968703938,-400.0,0.00023561,2]
[383521714,1756968703948,-400.0,0.00023561,2]
[383521715,1756968703958,-400.0,0.00023561,2]
[383521716,1756968703967,-400.0,0.00023561,2]
[383521717,1756968703976,-400.0,0.00023561,2]
[383521718,1756968703986,-400.0,0.00023561,2]
[383521719,1756968703996,-191.22059869,0.00023561,2]
[383521720,1756968712513,-36.27168042,0.00019337,2]
[383521721,1756968713762,-154.96518922,0.00019337,2]
[383521722,1756968714714,-8.76313036,0.00019337,2]
[383521723,1756968714804,-181.3064912,0.00019337,2]
[383521724,1756968714814,-169.38716932,0.00019337,2]
[383521725,1756968714933,-63.68202566,0.00019337,2]
[383521726,1756968714942,-317.62446554,0.00019337,2]
[383521727,1756968715052,-33.06919498,0.00019337,2]
[383521728,1756968720628,151.68,0.00011022,2]
[383521729,1756968720870,151.68,0.0001187,2]
[383521730,1756968721085,151.68,0.00012718,2]
[383521731,1756968721284,151.68,0.00013566,2]
[383521732,1756968721763,151.68,0.00014414,2]
[383521733,1756968721976,151.68,0.00015261,2]
[383521734,1756968722182,151.68,0.00016109,2]
[383521735,1756968722391,151.68,0.00016957,2]
[383521736,1756968722584,151.68,0.00017805,2]
[383521738,1756968746871,-151.68,0.00018653,2]
[383521739,1756968746896,-91.65272859,0.00019501,2]
[383521755,1756968940328,302.94,0.00013699,2]
[383521756,1756968986764,1000.0,8.2e-07,120]
[383521757,1756969000968,1000.0,8.2e-07,120]
[383521758,1756969010464,1000.0,8.2e-07,120]
[383521759,1756969019770,1000.0,8.2e-07,120]
[383521760,1756969029405,1000.0,8.2e-07,120]
[383521762,1756969228076,168.72,0.00016073,2]
[383521763,1756969430858,416.84318895,0.0003013,120]
[383521764,1756969433686,924.0,0.0003013,120]
[383521765,1756969442472,342.0,0.0003013,120]
[383521767,1756969447759,500.0,0.000194,3]
[383521768,1756969447916,500.0,0.00019418,3]
[383521769,1756969455130,677.1,0.0003013,120]
[383521770,1756969481957,206.0,0.0003,120]
[383521772,1756969488225,230.92,0.0002602,120]
[383521773,1756969494595,684.0,0.0003013,120]
[383521774,1756969500991,837.9,0.00030136,120]
[383521775,1756969501029,1000.0,0.00030136,120]
[383521776,1756969503184,157.23,0.0003013,120]
[383521777,1756969503311,204.80049563,0.00030137,120]
[383521778,1756969503353,459.14,0.00030137,120]
[383521779,1756969503389,508.0,0.00030137,120]
[383521780,1756969503425,1024.0,0.00030137,120]
[383521781,1756969504766,1859.0,0.0003013,120]
[383521783,1756969518783,244.0,0.0003013,120]
[383521786,1756969553043,1864.0,0.0003013,120]
[383521787,1756969553935,154.0,0.00023,30]
[383521789,1756969557671,1480.0,0.0003013,120]
[383521790,1756969561423,1000.0,0.00030136,120]
[383521791,1756969566764,500.0,0.00019399,3]
[383521792,1756969566903,500.0,0.00019399,3]
[383521793,1756969567176,379.0,0.0003013,120]
[383521796,1756969610578,184.25439264,0.0003013,120]
[383521797,1756969621380,1000.0,0.00030136,120]
[383521799,1756969633242,-8.79536312,0.00019281,2]
[383521800,1756969633357,500.0,0.0003,120]
[383521801,1756969645264,-165.38,0.00019281,2]
[383521803,1756969663189,3000.0,0.0003,120]
[383521805,1756969684859,500.0,0.00019339,3]
[383521806,1756969685036,500.0,0.00019375,3]
[383521807,1756969691225,3855.0,0.0003,120]
[383521809,1756969705598,167.31,9.805e-05,2]
[383521810,1756969705803,167.31,0.00012256,2]
[383521811,1756969706002,-9.82463688,0.00019281,2]
[383521812,1756969706033,-230.35072624,0.00019339,2]
[383521813,1756969706122,167.31,0.00014707,2]
[383521814,1756969706147,-19.64927376,0.00019339,2]
[383521815,1756969706252,167.31,0.00017158,2]
[383521817,1756969718015,-256.0,0.00019338,2]
[383521818,1756969729940,550.0,0.0003013,120]
[383521819,1756969730568,-119.48609784,0.00019338,2]
[383521820,1756969730597,-261.02780432,0.00019338,2]
[383521822,1756969741022,835.9,0.00030136,120]
[383521823,1756969741084,1000.0,0.00030136,120]
[383521824,1756969742653,-200.0,0.00019303,2]
[383521825,1756969742679,-100.0,0.00019303,2]
[383521826,1756969754884,-500.0,0.00019304,2]
[383521828,1756969769543,-500.0,0.00019304,2]
[383521829,1756969781922,-400.0,0.00019304,2]
[383521831,1756969793196,197.32097311,0.0003013,120]
[383521832,1756969794433,-200.0,0.00019304,2]
[383521833,1756969801555,1000.0,0.00030136,120]
[383521834,1756969804226,1178.0,0.00029203,120]
[383521835,1756969806467,-200.0,0.00019303,2]
[383521836,1756969808034,500.0,0.00019303,3]
[383521837,1756969808183,500.0,0.00019314,3]
[383521839,1756969811208,2000.0,0.00019548,120]
[383521840,1756969819189,-100.0,0.00019303,2]
[383521841,1756969819233,-60.47536312,0.00019303,2]
[383521842,1756969821831,1000.0,0.00027,120]
[383521843,1756969822101,1000.0,0.000286,120]
[383521844,1756969823439,415.15512,0.00023,30]
[383521845,1756969823786,415.15512,0.00023,30]
[383521846,1756969824040,415.15512,0.00023,30]
[383521847,1756969824270,415.15512,0.00023,30]
[383521848,1756969824547,415.15513,0.00023,30]
[383521849,1756969831252,-200.0,0.00019303,2]
[383521854,1756969832406,-266.43967199,0.00019302,2]
[383521855,1756969832415,-13.56605488,0.00019302,2]
[383521856,1756969832428,-220.01342994,0.00019302,2]
[383521857,1756969832446,-39.52463688,0.00019303,2]
[383521858,1756969832469,-1200.0,0.00019303,2]
[383521859,1756969832479,-300.0,0.00019303,2]
[383521860,1756969832488,-150.0,0.00019303,2]
[383521861,1756969832498,-193.0,0.00019303,2]
[383521862,1756969832507,-195.0,0.00019303,2]
[383521863,1756969832517,-400.0,0.00019304,2]
[383521864,1756969832529,-2000.0,0.00019304,2]
[383521865,1756969832539,-1032.659,0.00019304,2]
[383521866,1756969832548,-300.0,0.00019305,2]
[383521867,1756969832558,-150.0,0.00019314,2]
[383521868,1756969832568,-286.0,0.00019321,2]
[383521869,1756969832577,-195.0,0.00019336,2]
[383521870,1756969832587,-553.2560542,0.00019338,2]
[383521871,1756969832596,-256.0,0.00019338,2]
[383521872,1756969832608,-400.0,0.00019338,2]
[383521873,1756969832618,-200.0,0.00019338,2]
[383521874,1756969832628,-184.73384172,0.00019338,2]
[383521875,1756969832644,-15.26615828,0.00019338,2]
[383521876,1756969832654,-500.0,0.00019339,2]
[383521877,1756969832663,-286.0,0.00019355,2]
[383521878,1756969832673,-500.0,0.00019399,2]
[383521879,1756969832682,-300.0,0.00019399,2]
[383521880,1756969832691,-286.0,0.00019399,2]
[383521881,1756969832701,-195.0,0.00019399,2]
[383521882,1756969832710,-945.0,0.00019399,2]
[383521883,1756969832723,-500.0,0.00019399,2]
[383521884,1756969832732,-431.12,0.00019401,2]
[383521885,1756969832743,-167.31,0.00019609,2]
[383521886,1756969832753,-200.0,0.00019656,2]
[383521887,1756969832763,-325.0,0.0001992,2]
[383521890,1756969832772,-160.0,0.00019927,7]
[383521893,1756969832782,-326.87,0.00019927,2]
[383521896,1756969832791,-150.82,0.00019957,2]
[383521898,1756969832800,-41036.09,0.00019994,2]
[383521900,1756969832810,-1574.0,0.00020123,2]
[383521902,1756969832820,-248.0,0.00020123,2]
[383521904,1756969832833,-853.0,0.00020127,2]
[383521907,1756969832842,-166.66666667,0.0002013,2]
[383521909,1756969832854,-238.09,0.00020154,2]
[383521911,1756969832864,-666.0,0.00020154,3]
[383521913,1756969832874,-4732.07,0.00020154,2]
[383521915,1756969832883,-4375.26,0.00020154,2]
[383521916,1756969832893,-3569.03,0.00020154,2]
[383521917,1756969832903,-346.0,0.0002017,2]
[383521918,1756969832913,-1497.0,0.00020179,2]
[383521919,1756969832922,-302.94,0.00020187,2]
[383521920,1756969832932,-562.0,0.00020216,2]
[383521921,1756969832941,-478.0,0.00020223,2]
[383521922,1756969832951,-1496.0,0.00020227,2]
[383521923,1756969832961,-482.0,0.0002027,2]
[383521924,1756969832971,-668.0,0.00020273,2]
[383521925,1756969832980,-1924.0,0.00020279,2]
[383521926,1756969832990,-1787.0,0.00020316,2]
[383521927,1756969833000,-932.0,0.00020322,2]
[383521928,1756969833010,-1955.65824609,0.00020327,2]
[383521929,1756969833020,-439.36,0.00020356,2]
[383521930,1756969833029,-295.0,0.00020369,2]
[383521931,1756969833039,-781.0,0.00020373,2]
[383521932,1756969833049,-1839.0,0.00020379,2]
[383521933,1756969833059,-250.0,0.00020388,2]
[383521934,1756969833068,-1623.0,0.00020416,2]
[383521935,1756969833078,-311.0,0.00020469,2]
[383521936,1756969833090,-1852.42,0.00020475,2]
[383521937,1756969833099,-670.0,0.00020478,2]
[383521938,1756969833109,-935.0,0.00020516,2]
[383521939,1756969833118,-232.0,0.00020578,2]
[383521940,1756969833128,-309.0,0.00020603,2]
[383521941,1756969833138,-1863.0,0.00020616,2]
[383521942,1756969833147,-794.0,0.00020678,2]
[383521943,1756969833156,-167.56,0.00020686,2]
[383521944,1756969833166,-151.0,0.00020714,2]
[383521945,1756969833176,-151.0,0.00020714,2]
[383521946,1756969833185,-151.0,0.00020714,2]
[383521947,1756969833195,-151.0,0.00020714,2]
[383521948,1756969833204,-151.0,0.00020714,2]
[383521949,1756969833215,-200.0,0.00020714,2]
[383521950,1756969833225,-1456.0,0.00020717,2]
[383521951,1756969833234,-48830.09,0.00020727,2]
[383521952,1756969833246,-5000.0,0.00020727,2]
[383521953,1756969833256,-1312.21882395,0.00020747,2]
[383521954,1756969833266,-171.0,0.00020778,2]
[383521955,1756969833276,-429.0,0.00020817,2]
[383521956,1756969833286,-151.0,0.00020847,2]
[383521957,1756969833296,-695.39793187,0.00020847,2]
[383521958,1756969833305,-160.0,0.00020847,2]
[383521959,1756969833315,-560.76683566,0.00020847,2]
[383521960,1756969833324,-322.6107,0.00020847,2]
[383521961,1756969833334,-250.0,0.00020847,2]
[383521962,1756969833343,-349.999998,0.00020847,2]
[383521963,1756969833353,-250.0,0.00020847,2]
[383521964,1756969833363,-151.0,0.00020847,2]
[383521965,1756969833374,-151.0,0.00020847,2]
[383521966,1756969833383,-250.0,0.00020847,2]
[383521967,1756969833394,-151.0,0.00020847,2]
[383521968,1756969833404,-250.0,0.00020847,2]
[383521969,1756969833413,-151.0,0.00020847,2]
[383521970,1756969833423,-250.0,0.00020847,2]
[383521971,1756969833432,-250.0,0.00020847,2]
[383521972,1756969833442,-151.0,0.00020847,2]
[383521973,1756969833451,-250.0,0.00020847,2]
[383521974,1756969833461,-151.0,0.00020847,2]
[383521975,1756969833470,-329.24022059,0.00020847,2]
[383521976,1756969833480,-151.0,0.00020847,2]
[383521977,1756969833489,-267.46074303,0.00020847,2]
[383521978,1756969833499,-151.0,0.00020847,2]
[383521979,1756969833508,-151.0,0.00020847,2]
[383521980,1756969833517,-151.0,0.00020847,2]
[383521981,1756969833527,-151.0,0.00020847,2]
[383521982,1756969833546,-151.0,0.00020847,2]
[383521983,1756969833557,-151.0,0.00020847,2]
[383521984,1756969833566,-1596.91,0.0002085,2]
[383521985,1756969833575,-1592.0,0.00020878,2]
[383521986,1756969833586,-158.0,0.00021034,2]
[383521987,1756969833596,-192.0,0.00021034,2]
[383521988,1756969833606,-1680.0,0.00021136,2]
[383521989,1756969833616,-238.09,0.00021162,2]
[383521990,1756969833625,-4344.31684298,0.00021195,2]
[383521991,1756969833636,-250.0,0.00021198,2]
[383521992,1756969833646,-500.0,0.00021209,3]
[383521993,1756969833661,-250.0,0.00021209,2]
[383521994,1756969833671,-500.0,0.00021209,2]
[383521995,1756969833682,-195.0,0.00021233,2]
[383521996,1756969833692,-500.0,0.00021233,3]
[383521997,1756969833702,-150.0,0.00021233,2]
[383521998,1756969833711,-193.0,0.00021233,2]
[383521999,1756969833721,-250.0,0.00021233,2]
[383522000,1756969833731,-300.0,0.00021233,2]
[383522001,1756969833740,-286.0,0.00021234,2]
[383522002,1756969833750,-1312.21882388,0.00021292,2]
[383522003,1756969833760,-150.0,0.00021339,4]
[383522004,1756969833771,-300.0,0.00021339,2]
[383522005,1756969833781,-286.0,0.00021339,2]
[383522006,1756969833791,-195.0,0.00021339,2]
[383522007,1756969833800,-500.0,0.00021339,3]
[383522008,1756969833811,-250.0,0.00021339,2]
[383522009,1756969833820,-500.0,0.00021339,2]
[383522010,1756969833833,-2087.93,0.00021356,2]
[383522011,1756969833844,-151.0,0.00021395,2]
[383522012,1756969833854,-151.0,0.00021395,2]
[383522013,1756969833864,-2000.0,0.000214,2]
[383522014,1756969833874,-4477.6495,0.00021817,2]